Cogmind - Beta 15 @@@ ROGUE MODE // 2025.05.09 @ 10:31:42 Player: NuclearMayhem Result: Self-destructed Performance ------------- Evolutions (4) 2000 Regions Visited (5) 1000 Robots Destroyed (24) 120 Value Destroyed (832) 832 Prototype IDs (17) 340 Alien Tech Used (0) 0 Bonus (800) 800 TOTAL SCORE: 5092 Bonus ------- Registered with UFD 300 Met Optimus in HQ 500 Cogmind --------- Core Integrity 106/850 Matter 96/300 Energy 100/100 System Corruption 1% Temperature Cool (12) Movement Core (700) Ox13 Location -6/Factory Parts ------- > --- POWER (1) -------- (None) > --- PROPULSION (6) --- (None) > --- UTILITY (7) ------ High-capacity Storage Unit Advanced Targeting Computer > --- WEAPON (2) ------- (None) > --- INVENTORY (20) --- Light Nuclear Core Overtuned Scrapsphere Overtuned Scrapsphere Scrap Suit Compact Battery (200) Relay Coupler [Proto] (2) Datajack Remote Datajack Remote Datajack CPS Tube (2) Multitool Makeshift Axe DRS Beacon (Ready) Peak State ------------ > --- POWER ------------ Light Nuclear Core > --- PROPULSION ------- Improved Aluminum Leg Titanium Leg Cargo Legs > --- UTILITY ---------- Scrap Suit High-capacity Storage Unit Medium Armor Plating Hardened Light Armor Plating Hardened Light Armor Plating Hardened Light Armor Plating System Shield > --- WEAPON ----------- Advanced Assault Cannon Magnetic Acceleration Cannon > --- INVENTORY -------- Light Nuclear Core Overtuned Scrapsphere Overtuned Scrapsphere Scrap Suit Hardened Heavy Armor Plating Relay Coupler [Behemoth] Relay Coupler [Proto] Autogun Overtuned Coil Gun Slug Cannon Datajack Remote Datajack CPS Tube Multitool Makeshift Axe Vortex Trap DRS Beacon [Rating: 60] Favorites ----------- Power Nuclear Core Engine Subdweller Power Source Power Core Nuclear Core Propulsion Cargo Legs Treads Light Treads Leg Cargo Legs Utility Medium Armor Plating Device Disposable Heat Sink Storage High-capacity Storage Unit Processor Advanced Targeting Computer Hackware System Shield Protection Medium Armor Plating Weapon Advanced Assault Cannon Energy Gun Subdweller Laser Energy Cannon Subdweller Beam Cannon Ballistic Gun Overtuned Coil Gun Ballistic Cannon Advanced Assault Cannon Build | -11 -10 -10 -9 -9 -6 ------- Run | Yrd Mat Sub Rec Scr Fac Slots Evolved 8 | . . . . . 8 Power . | . . . . . . Propulsion 4 | . . . . . 4 Utility 4 | . . . . . 4 Weapon . | . . . . . . Parts Attached 35 | 6 . 12 1 6 10 Power 5 | 1 . 2 . 2 . Engine 3 | 1 . 2 . . . Core 2 | . . . . 2 . Reactor . | . . . . . . Propulsion 7 | 2 . 3 . . 2 Treads 2 | . . 2 . . . Leg 5 | 2 . 1 . . 2 Wheel . | . . . . . . Hover . | . . . . . . Flight . | . . . . . . Utility 11 | 1 . 1 1 2 6 Device 2 | . . 1 . 1 . Storage 2 | 1 . . . 1 . Processor 1 | . . . . . 1 Hackware 1 | . . . . . 1 Protection 5 | . . . 1 . 4 Artifact . | . . . . . . Weapon 12 | 2 . 6 . 2 2 Energy Gun 4 | 2 . 2 . . . Energy Cannon 1 | . . 1 . . . Ballistic Gun 2 | . . . . . 2 Ballistic Cannon 5 | . . 3 . 2 . Launcher . | . . . . . . Special Weapon . | . . . . . . Impact Weapon . | . . . . . . Slashing Weapon . | . . . . . . Piercing Weapon . | . . . . . . Special Melee Weapon . | . . . . . . Unidentified Prototypes . | . . . . . . Parts Lost 16 | . . 1 . . 15 Power 1 | . . . . . 1 Propulsion 3 | . . . . . 3 Utility 6 | . . . . . 6 Weapon 6 | . . 1 . . 5 Highest Loss Streak 15 | . . 1 . . 15 To Critical Strikes . | . . . . . . Average Backups 12 | 2 6 7 7 15 14 Power . | . 1 1 1 . . Propulsion 2 | 1 4 4 2 1 2 Utility 4 | . . . . 7 4 Weapon 2 | . 1 1 2 2 3 Tool/Special . | . . . . . . Unused Backups 31 | . . 6 . 12 13 Power 3 | . . 1 . 1 1 Propulsion 8 | . . 4 . 2 2 Utility 11 | . . . . 7 4 Weapon 4 | . . 1 . 2 1 Tool/Special 5 | . . . . . 5 Average Slot Usage (%) 73 | . 85 84 66 67 66 Engine 5 | . 14 13 11 . . Core 5 | . . . . 10 4 Treads 5 | . . 16 . . . Leg 10 | . 28 7 11 11 15 Device 3 | . . 7 6 1 4 Storage 11 | . 14 13 11 11 5 Protection 8 | . . . 4 11 19 Energy Gun 1 | . 28 4 . . . Energy Cannon 3 | . . 11 . . . Ballistic Cannon 16 | . . 11 22 22 9 Peak Build Rating 60 | 6 6 28 28 46 60 Average Rating 30 | 4 6 14 28 36 55 On Entrance 19 | . 6 6 28 28 46 Naked Turns . | . . . . . . Heaviest Build 85 | 14 14 26 27 70 85 Greatest Support 85 | 20 20 55 55 55 85 Greatest Overweight (x) 1 | . . 1 . 1 1 Average Overweight (x) . | . . . . . . Largest Inventory Capacity 20 | 8 8 8 8 20 20 Average Capacity 15 | 6 8 8 8 19 20 Most Carried 20 | 6 7 8 8 20 20 Average Carried 13 | 3 6 7 7 16 18 Final Capacity 20 | 8 8 8 8 20 20 Final Carried 20 | 6 7 8 8 20 14 Class Distribution -------------------- 100% | Mutant Dominant Class ---------------- Mutant | -10/Materials Mutant | -10/Subcaves Mutant | -9/Recycling Mutant | -9/Scraptown Mutant | -6/Factory Resources | -11 -10 -10 -9 -9 -6 ----------- Run | Yrd Mat Sub Rec Scr Fac Matter Collected 869 | 203 20 385 21 50 190 Remotely . | . . . . . . Salvage Created 581 | . 20 404 . . 157 Parts 36 | . 1 27 . . 8 Haulers Intercepted . | . . . . . . Recyclers Shooed 1 | . . . . . 1 Parts Field Recycled . | . . . . . . Retrieved Matter . | . . . . . . Parts Self-Destructed 8 | . . 8 . . . Prevented . | . . . . . . Kills | -11 -10 -10 -9 -9 -6 ------- Run | Yrd Mat Sub Rec Scr Fac Combat Hostiles Destroyed 20 | . . 12 . . 8 Melee 1 | . . . . . 1 Guns 1 | . . 1 . . . Cannons 16 | . . 11 . . 5 AOE 2 | . . . . . 2 Classes Destroyed 8 | . 1 4 . . 3 Operator 2 | . 1 . . . 1 Turret 2 | . . 2 . . . Swarmer 7 | . . 3 . . 4 Grunt 1 | . . . . . 1 Sentry 1 | . . . . . 1 Programmer 2 | . . . . . 2 Artisan 1 | . . 1 . . . Subdweller 9 | . . 9 . . . Best Kill Streak 4 | . 1 3 . . 4 Combat Bots Only 4 | . . 3 . . 4 Max Kills in Single Turn 2 | . 1 1 . . 2 Gunslinging . | . . . . . . Exploded 2 | . . . . . 2 Melee 1 | . . . . . 1 Uniques/NPCs Destroyed . | . . . . . . Combat | -11 -10 -10 -9 -9 -6 -------- Run | Yrd Mat Sub Rec Scr Fac Hostile Shots Fired 449 | . . 116 . . 333 Missed 151 | . . 55 . . 96 Hits 298 | . . 61 . . 237 Melee 9 | . . . . . 9 Projectile 289 | . . 61 . . 228 Critical Strikes 5 | . . . . . 5 Damage Taken 3888 | . . 650 . . 3238 Core 869 | . . 125 . . 744 Absorbed by Shields . | . . . . . . Regen/Repaired (Parts) 30 | . . . . . 30 Core Remaining (%) 75 | 100 . . . 50 . Volleys Fired 95 | . 4 53 . . 38 Largest 2 | . 2 2 . . 2 Hottest 140 | . 100 140 . . 84 Shots Fired 171 | . 8 96 . . 67 Gun 30 | . 8 12 . . 10 Cannon 141 | . . 84 . . 57 Launcher . | . . . . . . Special . | . . . . . . Kinetic 111 | . . 44 . . 67 Thermal 60 | . 8 52 . . . Explosive . | . . . . . . Electromagnetic . | . . . . . . Robot Hit Streak 16 | . 2 16 . . 5 Robot Miss Streak 5 | . 1 3 . . 5 Penetration Max . | . . . . . . Secondary Targets . | . . . . . . Shots Hit Robots 85 | . 5 50 . . 30 Core Hits 34 | . 2 18 . . 14 Critical Kills 2 | . . 2 . . . Critical Parts Destroyed . | . . . . . . Critical Strikes 5 | . 2 3 . . . Burn 2 | . 2 . . . . Destroy 2 | . . 2 . . . Blast 1 | . . 1 . . . Melee Attacks . | . . . . . . Impact . | . . . . . . Slashing . | . . . . . . Piercing . | . . . . . . Sneak Attacks . | . . . . . . Combat Hostiles . | . . . . . . Follow-up Attacks . | . . . . . . Damage Inflicted 2438 | . 63 1393 . . 982 Guns 367 | . 63 185 . . 119 Cannons 2008 | . . 1208 . . 800 Explosions . | . . . . . . Melee . | . . . . . . Ramming 63 | . . . . . 63 Kinetic 1633 | . . 714 . . 919 Thermal 742 | . 63 679 . . . Explosive . | . . . . . . Electromagnetic . | . . . . . . Impact . | . . . . . . Slashing . | . . . . . . Piercing . | . . . . . . Highest Corruption 1 | . . . . . 1 Average Corruption 1 | . . . . . 1 Corruption Purged . | . . . . . . Corruption Blocked . | . . . . . . Overload Shots . | . . . . . . Overflow Damage 55 | . . 26 . . 29 Projectiles 55 | . . 26 . . 29 Explosions . | . . . . . . Melee . | . . . . . . Knockbacks 19 | . . 9 . . 10 Impact . | . . . . . . Kinetic 18 | . . 9 . . 9 Secondary 1 | . . . . . 1 Self-Inflicted Damage . | . . . . . . Shots . | . . . . . . Rammed 2 | . . 1 . . 1 Targets Rammed 12 | . . 1 . . 11 Kicked 10 | . . . . . 10 Crushed . | . . . . . . Highest Temperature 442 | . 156 54 . . 442 Average Temperature 109 | . 79 19 . . 132 Received Heat Transfer 723 | . . 198 . . 525 Effects 4 | . . . . . 4 Shutdowns 1 | . . . . . 1 Interference 3 | . . . . . 3 Siege Activations . | . . . . . . Martial Activations . | . . . . . . Shielding Activations . | . . . . . . Robots Disrupted . | . . . . . . Combat Hostiles . | . . . . . . Robots Corrupted . | . . . . . . Combat Hostiles . | . . . . . . Parts Fried . | . . . . . . Impact Corruptions . | . . . . . . Robots Melted . | . . . . . . Combat Hostiles . | . . . . . . Parts Melted . | . . . . . . Heat Transferred 1224 | . 333 891 . . . Parts Sabotaged . | . . . . . . Parts Stolen . | . . . . . . Parts Stripped . | . . . . . . Power Chain Reactions . | . . . . . . Alert | -11 -10 -10 -9 -9 -6 ------- Run | Yrd Mat Sub Rec Scr Fac Maximum Alert Level . | . . . . . . Low Security (%) 100 | 100 100 . 100 . 100 Level 1 . | . . . . . . Level 2 . | . . . . . . Level 3 . | . . . . . . Level 4 . | . . . . . . Level 5 . | . . . . . . High Security . | . . . . . . Max Security . | . . . . . . Peak Influence 93 | . 5 . . . 93 Initial . | . . . . . . Average 11 | . . . . . 17 Influence Increases 482 | . 5 235 . . 242 Destroy 0b10 Robot/C 260 | . . 100 . . 160 Destroy 0b10 Robot/NC 10 | . 5 . . . 5 Destroy Leader 40 | . . . . . 40 Trap Triggered on 0b10 10 | . . . . . 10 Disable Machine 15 | . . . . . 15 Destroy Structure 12 | . . . . . 12 Lose Combat Pursuer 135 | . . 135 . . . Influence Decreases 453 | . 5 235 . . 213 Time Decay 403 | . 5 225 . . 173 Lost Part 50 | . . 10 . . 40 Squads Dispatched 4 | . 1 . . . 3 Investigation . | . . . . . . Extermination 1 | . . . . . 1 Reinforcement 3 | . 1 . . . 2 Assault . | . . . . . . Garrison . | . . . . . . Intercept . | . . . . . . Searches Triggered . | . . . . . . Construction Impeded 1 | . . . . . 1 Haulers Reinforced . | . . . . . . Active Scanning Responses . | . . . . . . Cargo Convoy Interrupts . | . . . . . . Stealth | -11 -10 -10 -9 -9 -6 --------- Run | Yrd Mat Sub Rec Scr Fac Distress Signals 3 | . . . . . 3 Communications Jammed . | . . . . . . Distress Signals . | . . . . . . Times Spotted 48 | . 2 20 . . 26 Peak Tracking Total 10 | . 1 4 . . 10 Tactical Retreats 4 | . . 4 . . . Traps | -11 -10 -10 -9 -9 -6 ------- Run | Yrd Mat Sub Rec Scr Fac Traps Triggered . | . . . . . . Indirectly . | . . . . . . Trap Hack Attempts . | . . . . . . Triggered . | . . . . . . Disarmed . | . . . . . . Reprogrammed . | . . . . . . Reused 1 | . . . . . 1 Traps Extracted . | . . . . . . Installed 1 | . . . . . 1 Triggered 1 | . . . . . 1 Most Traps Carried 1 | . . . . 1 1 Machines | -11 -10 -10 -9 -9 -6 ---------- Run | Yrd Mat Sub Rec Scr Fac Machines Disabled 4 | . . 3 . . 1 Max in Single Turn 1 | . . 1 . . 1 Machines Repaired . | . . . . . . Machines Dismantled . | . . . . . . Machines Sabotaged . | . . . . . . Overloaded Fab Kills . | . . . . . . Hacking | -11 -10 -10 -9 -9 -6 --------- Run | Yrd Mat Sub Rec Scr Fac Machines Accessed 8 | . . 1 1 3 3 Terminals 2 | . . . 1 . 1 Fabricators . | . . . . . . Repair Stations . | . . . . . . Recycling Units . | . . . . . . Scanalyzers . | . . . . . . Garrison Access 2 | . . . . . 2 Total Hacks 17 | . . 1 2 7 7 Successful 8 | . . 1 . 7 . Failed 9 | . . . 2 . 7 Catastrophic 2 | . . . . . 2 Database Lockouts . | . . . . . . Manual 6 | . . . 2 . 4 Terminals 6 | . . . 2 . 4 Fabricators . | . . . . . . Repair Stations . | . . . . . . Recycling Units . | . . . . . . Scanalyzers . | . . . . . . Garrison Access 3 | . . . . . 3 Terminal Hacks 8 | . . 1 . 7 . Record 6 | . . . . 6 . Proto ID Catalog 2 | . . 1 . 1 . Fabricator Hacks . | . . . . . . Repair Station Hacks . | . . . . . . Recycling Unit Hacks . | . . . . . . Scanalyzer . | . . . . . . Garrison Access Hacks . | . . . . . . Unauthorized Hacks . | . . . . . . Terminals . | . . . . . . Fabricators . | . . . . . . Repair Stations . | . . . . . . Recycling Units . | . . . . . . Scanalyzers . | . . . . . . Garrison Access . | . . . . . . Data Cores Recovered . | . . . . . . Used . | . . . . . . Hacking Detections 4 | . . . 1 . 3 Full Trace Events . | . . . . . . Feedback Events . | . . . . . . Feedback Blocked . | . . . . . . Robot Schematics Acquired . | . . . . . . Robots Built . | . . . . . . Authchips . | . . . . . . Time . | . . . . . . Total Robot Build Rating . | . . . . . . Part Schematics Acquired . | . . . . . . Parts Built . | . . . . . . Authchips . | . . . . . . Time . | . . . . . . Total Part Build Rating . | . . . . . . Parts Repaired . | . . . . . . Time . | . . . . . . Parts Recycled . | . . . . . . Recycled Matter . | . . . . . . Retrieved Matter . | . . . . . . Retrieved Components . | . . . . . . Parts Scanalyzed . | . . . . . . Part Schematics Acquired . | . . . . . . Parts Damaged . | . . . . . . Bothacking | -11 -10 -10 -9 -9 -6 ------------ Run | Yrd Mat Sub Rec Scr Fac Used RIF Installer . | . . . . . . Robots Hacked . | . . . . . . Non-combat . | . . . . . . Combat . | . . . . . . Robot Hacks Applied . | . . . . . . Relay Couplers Released . | . . . . . . Fabnet Peak Effective % . | . . . . . . Robots Rewired . | . . . . . . Allies Hacked . | . . . . . . Hacks Repelled . | . . . . . . Allies | -11 -10 -10 -9 -9 -6 -------- Run | Yrd Mat Sub Rec Scr Fac Total Allies . | . . . . . . Largest Group . | . . . . . . Highest-Rated Group . | . . . . . . Highest-Rated Ally . | . . . . . . Total Orders . | . . . . . . Ally Attacks . | . . . . . . Total Damage . | . . . . . . Kills . | . . . . . . Allies Corrupted . | . . . . . . Allies Melted . | . . . . . . Intel | -11 -10 -10 -9 -9 -6 ------- Run | Yrd Mat Sub Rec Scr Fac Active Infowar (turns) . | . . . . . . Robot Analysis Total . | . . . . . . Derelict Logs Recovered 5 | . . 2 . 3 . Drone Launches . | . . . . . . Drone Recoveries . | . . . . . . Exploration | -11 -10 -10 -9 -9 -6 ------------- Run | Yrd Mat Sub Rec Scr Fac Turns Passed 6344 | 64 103 2002 227 3218 730 Spaces Moved 3464 | 44 36 1190 172 1568 454 Core 5 | 5 . . . . . Treads 641 | . . 641 . . . Legs 2818 | 39 36 549 172 1568 454 Wheels . | . . . . . . Hover . | . . . . . . Flight . | . . . . . . Fastest Speed 50 | 50 120 120 130 130 126 Average Speed 167 | 112 120 151 130 198 128 Slowest Speed 200 | 120 120 190 130 200 195 Overloaded Moves . | . . . . . . Propulsion Burnouts . | . . . . . . Robots Hopped . | . . . . . . Potential Cave-ins . | . . . . . . Cave-ins Triggered . | . . . . . . Exploration Rate (%) 35 | 5 9 52 36 93 18 Regions Visited 5 Branch Regions 3 Pre-discovered Areas 1 | . . 1 . . . Known Exits Taken . | . . . . . . Unknown Exits Taken 5 | 1 1 1 1 1 . Scrap Searched 15 | . . 9 . 6 . Spaces Dug . | . . . . . . Terrain Destroyed 25 | . . 11 . . 14 Melee . | . . . . . . Projectile 25 | . . 11 . . 14 AOE . | . . . . . . Terrain Rammed . | . . . . . . Walls Destroyed . | . . . . . . Machines Disabled . | . . . . . . Actions | -11 -10 -10 -9 -9 -6 --------- Run | Yrd Mat Sub Rec Scr Fac Total 3822 | 55 88 1302 176 1676 525 Wait 125 | . 48 18 . 57 2 Move 3459 | 43 35 1189 171 1567 454 Hop . | . . . . . . Pick Up 50 | 6 1 10 2 26 5 Fast Attach 21 | 6 . 8 . 4 3 Attach 10 | . . 1 1 . 8 Detach 2 | . . . . 1 1 Swap 6 | . . 4 . 2 . Drop 41 | . . 18 2 19 2 Fire 95 | . 4 53 . . 38 Melee . | . . . . . . Ram 1 | . . . . . 1 Kick 10 | . . . . . 10 Crush 1 | . . 1 . . . Escape Stasis . | . . . . . . Rewire . | . . . . . . Trap 1 | . . . . . 1 Miscellaneous . | . . . . . . Route ------- -11/Scrapyard -10/Materials -10/Subcaves (discovered 3 exits: *Mat x2 / *Rec) -9/Recycling (discovered 2 exits: [*Fac] / *Scr) -9/Scraptown (discovered 2 exits: *Fac x2) -6/Factory History --------- Turn | Location | Event 5 | -11/Scrapyard | Discovered new exit (range 15) 65 | -11/Scrapyard | Entered Materials 162 | -10/Materials | Discovered new exit (range 3) 168 | -10/Materials | Entered Subcaves 169 | -10/Subcaves | Approached by a straggling Scientist 302 | -10/Subcaves | Build established: Mutant 312 | -10/Subcaves | Identified exit to Materials 409 | -10/Subcaves | Discovered exit to Materials (range 8) 420 | -10/Subcaves | Learned Materials security intel 429 | -10/Subcaves | Shifting Twisted Machinery released Sub. Laser 464 | -10/Subcaves | Shifting Twisted Machinery released Sub. Laser 717 | -10/Subcaves | Discovered new exit (range 8) 809 | -10/Subcaves | Shifting Twisted Machinery released Sub. Monowheel 1016 | -10/Subcaves | Learned location of Zion (-7) 1016 | -10/Subcaves | Met a Zionite searching for "candidates" 1019 | -10/Subcaves | Ambushed by angry Subdweller bent on revenge 1532 | -10/Subcaves | Visited 4L-MR0's lab 1649 | -10/Subcaves | Found Cargo Legs 1651 | -10/Subcaves | Attached Cargo Legs, gained temporary slots: Utility x2 2006 | -10/Subcaves | Shifting Twisted Machinery released Flamer 2016 | -10/Subcaves | Shifting Twisted Machinery released Mak. Axe 2170 | -10/Subcaves | Entered Recycling 2171 | -9/Recycling | Met a Zionite searching for Scraptown 2305 | -9/Recycling | Discovered new exit (range 8) 2363 | -9/Recycling | Scanned before Scraplab entrance 2382 | -9/Recycling | Entered Scraplab 2393 | -9/Recycling | Discovered new exit (range 3) 2397 | -9/Recycling | Entered Scraptown 3312 | -9/Scraptown | Discovered new exit (range 6) 3466 | -9/Scraptown | Scanned Subdweller tech in exchange for log data 3478 | -9/Scraptown | Learned Factory terminal intel 3480 | -9/Scraptown | Learned Factory trap positions 3482 | -9/Scraptown | Learned location of 1 exit from Research 3537 | -9/Scraptown | Visited Spacefarers 3711 | -9/Scraptown | Visited Cave Peace 3763 | -9/Scraptown | Visited TADAMA 3851 | -9/Scraptown | Visited Red Mages 3885 | -9/Scraptown | Found Relay Coupler [Proto] 3971 | -9/Scraptown | Visited Awakened 4017 | -9/Scraptown | Visited Observation Area 4057 | -9/Scraptown | Visited UFD Registry 4057 | -9/Scraptown | Registered with UFD as "Dualrider" 4103 | -9/Scraptown | Visited Abandonware Association 4129 | -9/Scraptown | Learned abandonware demo "POISON.EXE" 4173 | -9/Scraptown | Visited LU-1G1's Boring Crew 4207 | -9/Scraptown | Visited Curators Association 4287 | -9/Scraptown | Visited Science Testing Area 4645 | -9/Scraptown | Visited Research Penetration Think Tank 4687 | -9/Scraptown | Visited Junk Repository 4745 | -9/Scraptown | Visited DA-N13 Charitable Foundation 4763 | -9/Scraptown | Found DCF Scrap (30 items) 4830 | -9/Scraptown | Visited Derelict Rescue Squad 4863 | -9/Scraptown | Found DRS Beacon 4910 | -9/Scraptown | Visited Science Guys 4987 | -9/Scraptown | Visited Modified Component R&D 5233 | -9/Scraptown | Found Scrap Suit 5238 | -9/Scraptown | Found Scrap Suit 5416 | -9/Scraptown | Met Optimus 5416 | -9/Scraptown | Accepted into 0bPrime 5552 | -9/Scraptown | Discovered new exit (range 3) 5615 | -9/Scraptown | Entered Factory 5615 | -6/Factory | Evolved 8 slots: Propulsion x4, Utility x4 5616 | -6/Factory | Loaded intel: 114 trap records 5617 | -6/Factory | Loaded intel: 26 terminal locations 6339 | -6/Factory | Core integrity fell below 50% 6344 | -6/Factory | Core integrity fell below 20% 6345 | -6/Factory | Self-destructed Last Messages --------------- 06315_ ALERT: Hostiles spotted, dispatching reinforcements to Terminal F010. 06323_ Slug penetrates Wall. 06325_ Ovr. Coil Gun suddenly begins malfunctioning. 06326_ Slug penetrates Wall. 06326_ Kicked L-41 Fighter out of the way. 06329_ Kicked L-41 Fighter. 06330_ Kicked L-41 Fighter out of the way. 06333_ Kicked Y-54 Guardian. 06334_ Kicked Y-54 Guardian out of the way. 06335_ Y-54 Guardian destroyed. 06336_ Acquired 22 matter. 06337_ Kicked Y-54 Guardian. 06337_ Penetrated by Slug. 06337_ Ovr. Coil Gun destroyed. 06338_ Cargo Legs destroyed. 06338_ Slammed into Y-54 Guardian. 06341_ M-13 Machinist repairs H-66 Slayer. 06343_ Penetrated by Slug. Map ----- +----------------------------------------------------+ | ?????????????????????????????????????????????????? | | ?????????????????????????????????????????????????? | | ?????????????????????????????????????????????????? | | ?????????????????????????????????????????????????? | | ?????????????????????????????????????????????????? | | ?????????????????????????????????????????????????? | | ?????????????????????????????????????????????????? | | ?????????????????????????????????????????????????? | | ?????????????????????????????????????????????????? | | ??????????????????????????????????????""T""??????? | | ??????????????????????????????????????"""""??????? | | ?????????????????????????????????????????????????? | | ?????????????????????????????????????????????????? | | ?""??????????????????????????????????????????????? | | ?????????????????????????????????????????????? | | """??????????# ????????????????????????????????? | | """??????????# ????????##########?????????????? | | "????????????# ????????" ???????????? | | ??????????????# ????????" """ ""???????????? | | ??????????????# ???????# """ """??????????? | | ##########??###k ######## """ """??????????? | | # ??????????? | | g # """ """ ?????????? | | ^ ^ g u """ """ #????????? | | """"" """"""""" l# """ """ #????????? | | w @ # #????????? | | """"" """"""""" gY## #????????? | | hm## [ "T" #????????? | | """"" """"""""" u u## #????????? | | u###############????????? | | """"" """"""""" u###????????????????????? | | t ## #u# ###??????????????????? | | "####u# # #??????????????????? | | ##########+########"""""# #!"#???????????????????? | | #?# # [" ###?????????????????? | | #?# """ """ # %" " #?????????????????? | | #?# """ """ # " ###?????????????????? | | #?# """ """ # " #???????????????????? | | #?# # #% !#???????????????????? | | #?# """ """ ! # " % #???????????????????? | | ????# """ """ ####"""" % #???????????????????? | | ????# """ """ ##?### # % ##??????????????????? | | ????# ######## ###########?????????? | | ????# / % %%% % #???? | | ????# ^#######################?^?^^????? | | ????# ! #????????????????????????^^^????? | | ????##############???????????????????????????????? | | ?????????????????????????????????????????????????? | | ?????????????????????????????????????????????????? | | ?????????????????????????????????????????????????? | +----------------------------------------------------+ Best States ------------- Heat Dissipation 37 Coolant Potential 50 Energy Generation 15 Energy Capacity 250 Matter Stores 300 Matter Capacity 300 Sight Range 16 Terrain Scan Density 10 Armor Coverage 750 Evasion (%) 55 Targeting Accuracy 8 Recoil Reduction 2 Defensive Hacking 10 Item Schematics ----------------- None Robot Schematics ------------------ None Fabricated ------------ Nothing Repaired ---------- Nothing Alien Tech Used ----------------- None Achievements -------------- None Challenges ------------ None Game ------ Seed CryofiberAssaultMinigun Manual? 0 Play Time 00:50:26 Cumulative 110.9 hours Start 2025.05.09 @ 09:36:26 End 2025.05.09 @ 10:31:42 Sessions 1 Manual Loads 0 Difficulty Rogue Special Mode None Game No. 94 Rogue 94 Adventurer 0 Explorer 0 Win Type - Total 1 Types 1/0/0/0/0/0/0/0/0/0 Lore% 47 Gallery% 46 Achievement% 43 Wizard Run 0 Options --------- Layout 1 ASCII 0 Keyboard 0 Movement Mouse Keybinds 0 Fullscreen 1 Font 24/Smallcaps Map View 50x35 Zoom Use 0% Tactical HUD 1 Map Filters NONE Filters NONE Steam 1 RUN: f2604263-ebf4-47ab-8077-69184a85e7d6